bitfinex-derivatives/quotes_SOLF0:USTF0_20251108
["timestamp","ask_amount","ask_price","bid_price","bid_amount"]
[1762628801284,4.67132224,157.95,157.93,3.0832547]
[1762628801489,5.28186164,157.96,157.93,3.0832547]
[1762628801689,7.59241332,157.95,157.93,3.0832547]
[1762628801891,2.92,157.95,157.93,3.0832547]
[1762628802092,2.92,157.93,157.87,3.04]
[1762628802295,0.04118647,157.97,157.87,3.04]
[1762628802296,5.28186164,157.92,157.87,3.04]
[1762628802989,5.28186164,157.92,157.88,8.742]
[1762628803195,5.32187278,157.92,157.88,8.78782093]
[1762628803600,2.36186164,157.9,157.88,8.78782093]
[1762628804895,2.36186164,157.9,157.89,2.99]
[1762628805199,3.01,157.91,157.89,2.99]
[1762628806194,3.01,157.91,157.89,8.6919]
[1762628807801,0.04001114,157.92,157.9,8.6915]
[1762628807994,0.04001114,157.92,157.91,2.99]
[1762628809104,5.37186164,158.0,157.94,2.99]
[1762628809302,9.40687177,157.99,157.94,2.99]
[1762628809499,9.40687177,157.98,157.94,2.99]
[1762628809695,5.37186164,158.0,157.94,2.99]
[1762628809895,9.25591605,157.99,157.94,2.99]
[1762628810193,4.78194287,157.98,157.96,8.6893]
[1762628810393,0.0485368,157.98,157.96,8.6893]
[1762628814904,7.55015573,157.97,157.95,0.04451519]
[1762628815100,4.73119693,157.96,157.95,0.04451519]
[1762628816607,5.44039844,157.98,157.95,0.04451519]
[1762628816802,4.73189039,157.97,157.95,0.04451519]
[1762628817005,5.44039844,157.98,157.95,0.04451519]
[1762628817307,4.73189039,157.97,157.95,2.99451519]
[1762628817497,5.44039844,157.98,157.95,2.99451519]
[1762628817706,4.73233866,157.97,157.95,2.99451519]
[1762628817898,3.0785368,157.98,157.95,2.99451519]
[1762628818102,0.0485368,157.98,157.96,2.95]
[1762628821610,7.09510398,157.97,157.95,0.04451519]
[1762628821804,2.36186164,157.97,157.95,0.04451519]
[1762628822107,4.73359007,157.96,157.95,0.04451519]
[1762628825907,2.36186164,157.97,157.95,0.04451519]
[1762628825908,5.42186164,157.97,157.95,0.04451519]
[1762628826611,4.73518432,157.96,157.95,0.04451519]
[1762628828505,7.79518432,157.96,157.95,0.04451519]
[1762628828704,12.34886509,157.96,157.95,0.04451519]
[1762628830914,7.79518432,157.96,157.95,0.04451519]
[1762628832318,12.3493419,157.96,157.95,0.04451519]
[1762628833220,7.79518432,157.96,157.95,0.04451519]
[1762628833418,12.3493695,157.96,157.95,0.04451519]
[1762628833614,9.2893695,157.96,157.95,0.04451519]
[1762628833818,4.73518432,157.96,157.95,3.22451519]
[1762628835019,24.36186164,157.97,157.95,8.92401519]
[1762628836920,2.36186164,157.97,157.95,8.92401519]
[1762628837825,0.0485368,157.98,157.97,3.18]
[1762628838022,9.34687667,157.98,157.96,5.6992]
[1762628838224,4.74453259,157.97,157.96,8.8792]
[1762628839123,0.0485368,157.98,157.96,8.8792]
[1762628839922,4.74431578,157.97,157.96,8.8792]
[1762628841424,10.16617742,157.97,157.96,5.6992]
[1762628842016,10.16617742,157.97,157.95,3.22451519]
[1762628842323,5.42186164,157.97,157.95,3.22451519]
[1762628842530,4.74469999,157.96,157.95,3.22451519]
[1762628843734,7.80469999,157.96,157.95,0.04451519]
[1762628846135,12.35949736,157.96,157.95,0.04451519]
[1762628846521,7.80469999,157.96,157.95,0.04451519]
[1762628847342,12.35984335,157.96,157.95,0.04451519]
[1762628850537,14.72170499,157.96,157.95,0.04451519]
[1762628852238,14.72591458,157.96,157.95,0.04451519]
[1762628852437,3.2,157.95,157.83,30.90536162]
[1762628852739,3.2,157.91,157.87,3.01]
[1762628853130,3.2,157.91,157.87,8.7124]
[1762628853640,3.2435078,157.91,157.88,5.7023]
[1762628855139,6.89098132,157.89,157.87,0.04238004]
[1762628857643,3.2,157.88,157.87,0.04238004]
[1762628865735,7.94951165,157.88,157.83,5.7039]
[1762628865940,3.04,157.87,157.83,8.8639]
[1762628866141,3.04,157.85,157.8,3.16]
[1762628866540,3.04,157.85,157.74,111.84227967]
[1762628866541,3.04,157.84,157.74,111.84227967]
[1762628866842,3.08385245,157.81,157.78,3.16]
[1762628867047,3.08588737,157.81,157.78,3.20195875]
[1762628867441,3.08588737,157.81,157.78,0.04195875]
[1762628867838,3.04,157.79,157.78,0.04195875]
[1762628871046,6.73098132,157.8,157.78,0.04195875]
[1762628871254,3.04,157.79,157.78,0.04195875]
[1762628878254,0.04588737,157.81,157.79,8.8956]
[1762628878453,3.25588737,157.81,157.79,8.8956]
[1762628879966,0.04588737,157.81,157.8,3.19]
[1762628882666,2.92,157.9,157.83,3.14]
[1762628883061,2.92,157.9,157.87,5.7026]
[1762628883261,2.92,157.9,157.87,8.8426]
[1762628883560,2.96059927,157.9,157.87,8.88760698]
[1762628885863,2.96059927,157.9,157.88,8.8421]
[1762628886069,0.04059927,157.9,157.89,3.14]
[1762628886667,0.04059927,157.9,157.88,8.8421]
[1762628887869,2.96059927,157.9,157.88,8.8421]
[1762628889276,2.96059927,157.9,157.87,0.04500698]
[1762628889770,2.96059927,157.9,157.87,3.18500698]
[1762628889966,0.04059927,157.9,157.87,3.18500698]
[1762628890672,2.96059927,157.9,157.87,3.18500698]
[1762628890873,2.96059927,157.9,157.88,5.7022]
[1762628891073,2.96059927,157.9,157.89,3.14]
[1762628891074,0.04059927,157.9,157.89,3.14]
[1762628896879,4.7277218,157.95,157.91,3.14]
[1762628897076,3.69098132,157.96,157.91,3.14]
[1762628897077,6.61098132,157.96,157.91,3.14]
[1762628897972,0.04272394,157.95,157.93,5.7003]
[1762628898173,6.65724029,157.96,157.93,5.7003]
[1762628898778,6.65724029,157.96,157.93,8.8403]
[1762628899377,6.65724029,157.96,157.94,5.7001]
[1762628899581,3.73724029,157.96,157.95,3.14]
[1762628899775,3.73724029,157.96,157.94,5.7001]
[1762628899980,3.73724029,157.96,157.94,8.8401]
[1762628900181,0.04625897,157.96,157.94,8.8401]
[1762628900481,2.96625897,157.96,157.94,8.8401]
[1762628903484,2.96625897,157.96,157.94,5.7001]
[1762628906089,2.96625897,157.96,157.94,8.8401]
[1762628907688,2.96625897,157.96,157.94,5.7001]
[1762628907991,2.92,157.94,157.92,5.74591694]
[1762628908186,2.92,157.94,157.92,0.04531694]
[1762628912494,5.56268827,157.93,157.92,0.04531694]
[1762628914390,2.36268827,157.93,157.92,3.19531694]
[1762628915088,22.04625897,157.96,157.93,3.15]
[1762628915481,0.04625897,157.96,157.93,3.15]
[1762628915686,0.04625897,157.96,157.94,5.7]
[1762628915886,0.04625897,157.96,157.95,3.15]
[1762628922491,0.04625897,157.96,157.94,8.85]
[1762628922698,0.04625897,157.96,157.95,3.15]
[1762628938525,5.33894724,157.96,157.94,8.78]
[1762628938725,2.40894724,157.96,157.95,3.08]
[1762628945023,3.03,157.95,157.92,8.78601694]
[1762628945222,7.17570036,157.96,157.92,0.04531694]
[1762628945223,3.03,157.93,157.92,0.04531694]
[1762628945527,7.79730741,157.93,157.92,0.04531694]
[1762628952137,12.36633058,157.93,157.92,0.04531694]
[1762628952834,7.79730741,157.93,157.92,0.04531694]
[1762628954835,4.76730741,157.93,157.92,3.08531694]
[1762628956033,7.79730741,157.93,157.92,0.04531694]
[1762628956524,3.03,157.92,157.89,5.7018]
[1762628956727,3.03,157.9,157.86,3.04]
[1762628957133,3.03,157.88,157.8,3.04]
[1762628957328,4.95502311,157.87,157.8,3.04]
[1762628957523,3.03,157.87,157.79,81.37392014]
[1762628957729,0.04765814,157.85,157.83,3.04]
[1762628958130,0.04765814,157.85,157.84,8.7436]
[1762628960236,0.04765814,157.85,157.84,5.7036]
[1762628964745,3.07765814,157.85,157.83,5.704]
[1762628964944,3.07765814,157.85,157.82,3.04]
[1762628965147,5.39268827,157.84,157.81,0.04052426]
[1762628965440,3.03,157.83,157.81,5.74512426]
[1762628965744,5.39268827,157.84,157.81,3.08052426]
[1762628966044,3.03,157.83,157.81,3.08052426]
[1762628966240,3.03,157.83,157.81,0.04052426]
[1762628970542,3.07765814,157.85,157.82,3.04]
[1762628970746,5.39268827,157.84,157.81,3.08052426]
[1762628971141,3.03,157.83,157.81,3.08052426]
[1762628971839,3.03,157.83,157.82,5.7044]
[1762628974558,3.08765814,157.85,157.82,8.6244]
[1762628974755,3.08765814,157.85,157.82,5.7044]
[1762628980452,3.08765814,157.85,157.82,8.6244]
[1762628982065,3.08765814,157.85,157.82,5.7044]
[1762628983056,3.08765814,157.85,157.81,0.04052426]
[1762628983357,3.04,157.82,157.81,0.04052426]
[1762628983557,7.99184031,157.82,157.81,0.04052426]
[1762628984662,25.16,157.84,157.81,3.23052426]
[1762628985159,3.16,157.83,157.81,3.23052426]
[1762628985761,3.16,157.83,157.81,0.04052426]
[1762628985958,3.16,157.83,157.81,5.74532426]
[1762628993371,4.96467392,157.82,157.81,5.74532426]
[1762628993869,3.16,157.83,157.81,5.74532426]
[1762628994271,3.16,157.83,157.81,8.93532426]
[1762628996174,4.96881347,157.82,157.81,8.93532426]
[1762629000579,4.96881347,157.82,157.81,3.23052426]
[1762629009488,0.04765814,157.85,157.83,2.99]
[1762629009987,0.04765814,157.85,157.84,8.6938]
[1762629010595,4.62287979,157.85,157.84,2.99]
[1762629010791,2.99,157.84,157.82,8.6943]
[1762629011093,8.92063747,157.85,157.83,2.99]
[1762629011294,4.57542027,157.84,157.83,2.99]
[1762629012189,7.56542027,157.84,157.82,2.99]
[1762629012386,2.99,157.84,157.82,2.99]
[1762629012889,5.93063747,157.85,157.82,8.6944]
[1762629013094,4.57561566,157.84,157.83,2.99]
[1762629014195,7.56561566,157.84,157.82,8.6944]
[1762629014396,2.99,157.84,157.82,8.6944]
[1762629014596,5.93063747,157.85,157.83,2.99]
[1762629014797,4.57540616,157.84,157.83,2.99]
[1762629015697,0.04765814,157.85,157.84,8.6938]
[1762629015897,4.62280088,157.85,157.84,8.6938]
[1762629020499,0.04765814,157.85,157.84,8.6938]
[1762629021300,5.01807906,157.85,157.84,8.6938]
[1762629026206,2.99,157.84,157.82,8.6943]
[1762629026403,7.96042092,157.83,157.82,5.7043]
[1762629026904,4.97042092,157.83,157.82,8.6943]
[1762629027104,4.97042092,157.83,157.81,0.04052426]
[1762629027105,2.99,157.82,157.81,0.04052426]
[1762629027406,2.99,157.81,157.77,2.99]
[1762629027604,4.97042092,157.8,157.77,2.99]
[1762629027806,6.68596901,157.81,157.77,2.99]
[1762629028005,4.96899437,157.8,157.77,2.99]
[1762629028206,0.04676697,157.8,157.77,3.03420516]
[1762629029607,3.03676697,157.8,157.77,3.03420516]
[1762629029799,4.9693958,157.79,157.77,3.03420516]
[1762629029999,4.9693958,157.78,157.77,3.03420516]
[1762629033212,3.03676697,157.8,157.77,3.03420516]
[1762629033410,4.96687104,157.79,157.77,3.03420516]
[1762629033606,3.03676697,157.8,157.77,3.03420516]
[1762629033806,4.96687104,157.79,157.77,3.03420516]
[1762629034007,3.03676697,157.8,157.77,3.03420516]
[1762629034218,4.96687104,157.79,157.77,3.03420516]
[1762629034512,3.03676697,157.8,157.77,3.03420516]
[1762629034705,4.9663477,157.79,157.77,3.03420516]
[1762629034906,0.04676697,157.8,157.78,2.95]
[1762629035109,4.96629039,157.79,157.78,2.95]
[1762629036018,4.96629039,157.79,157.78,8.6558]
[1762629038913,4.96629039,157.79,157.78,2.95]
[1762629040420,8.05629039,157.79,157.77,2.99420516]
[1762629040612,3.09,157.79,157.77,2.99420516]
[1762629043618,10.41660855,157.78,157.77,0.04420516]
[1762629046811,7.32660855,157.78,157.77,2.98420516]
[1762629047017,10.38660855,157.78,157.77,0.04420516]
[1762629047217,2.36634683,157.78,157.77,2.98420516]
[1762629047723,3.10676697,157.8,157.77,2.98420516]
[1762629047724,2.36634683,157.79,157.78,2.94]
[1762629047921,7.32414128,157.79,157.78,2.94]
[1762629049117,2.36634683,157.79,157.78,2.94]
[1762629054631,2.36634683,157.79,157.78,8.6459]
[1762629054930,5.4731138,157.8,157.78,8.6459]
[1762629055126,2.4131138,157.8,157.79,2.94]
[1762629055429,5.4731138,157.8,157.78,8.6459]
[1762629058833,2.4131138,157.8,157.79,2.94]
[1762629059030,7.37019819,157.8,157.79,2.94]
[1762629059825,5.92688365,157.84,157.81,2.94]
[1762629060137,7.84479062,157.86,157.81,2.94]
[1762629060138,8.98688365,157.87,157.81,2.94]
[1762629060436,4.6470787,157.86,157.81,2.94]
[1762629060738,3.06,157.87,157.81,2.94]
[1762629060935,0.0483283,157.85,157.84,5.7034]
[1762629061236,0.0483283,157.85,157.84,8.6434]
[1762629061937,3.1283283,157.85,157.82,3.14805719]
[1762629062929,3.1283283,157.85,157.83,5.704]
[1762629063134,3.1283283,157.85,157.83,8.804]
[1762629063342,3.08,157.83,157.79,3.1]
[1762629063643,5.44634683,157.81,157.78,8.8059]
[1762629064336,5.44634683,157.81,157.79,3.1]
[1762629064536,5.48629505,157.81,157.79,3.1]
[1762629064732,2.40629505,157.81,157.79,8.8055]
[1762629066139,5.48629505,157.81,157.79,8.8055]
[1762629066728,3.08,157.8,157.78,0.04021197]
[1762629067539,3.08,157.8,157.78,3.14021197]
[1762629068642,5.48629505,157.81,157.78,3.14021197]
[1762629070645,2.36634683,157.79,157.78,3.14021197]
[1762629071651,5.44634683,157.79,157.78,0.04021197]
[1762629071949,10.38209775,157.79,157.78,0.04021197]
[1762629074142,4.93575092,157.79,157.78,3.14021197]
[1762629077654,8.01575092,157.79,157.78,0.04021197]
[1762629079050,12.66280877,157.79,157.78,0.04021197]
[1762629079262,8.01575092,157.79,157.78,0.04021197]
[1762629092070,12.66225649,157.79,157.78,0.04021197]
[1762629095476,8.01575092,157.79,157.78,0.04021197]
[1762629095978,12.66163493,157.79,157.78,0.04021197]
[1762629096175,8.01575092,157.79,157.78,0.04021197]
[1762629096979,12.66148969,157.79,157.78,0.04021197]
[1762629097181,2.99,157.78,157.74,5.707]
[1762629097373,2.99,157.76,157.74,5.707]
[1762629097773,2.99,157.76,157.74,8.787]
[1762629100579,2.99,157.73,157.68,3.08]
[1762629100777,2.99,157.71,157.68,3.08]
[1762629101169,2.99,157.71,157.69,8.7891]
[1762629101770,2.99,157.71,157.69,3.08]
[1762629103283,0.04211373,157.72,157.69,3.08]
[1762629103683,2.96211373,157.72,157.69,3.08]
[1762629103981,2.96211373,157.72,157.69,8.7891]
[1762629105783,2.96211373,157.72,157.68,3.28031597]
[1762629105983,2.92,157.71,157.68,3.28031597]
[1762629110489,7.86331189,157.7,157.68,3.28031597]
[1762629110786,2.92,157.7,157.68,3.28031597]
[1762629114888,2.92,157.71,157.68,3.28031597]
[1762629115080,2.96211373,157.72,157.68,3.28031597]
[1762629116084,2.92,157.7,157.68,3.28031597]
[1762629121384,2.92,157.7,157.68,8.98971597]
[1762629121984,3.10211373,157.72,157.7,8.8588]
[1762629122378,3.10211373,157.72,157.68,0.04031597]
[1762629122379,3.10211373,157.72,157.68,3.19031597]
[1762629122990,3.10211373,157.72,157.7,3.15]
[1762629126703,0.04211373,157.72,157.71,3.15]
[1762629126996,0.04211373,157.72,157.7,5.7087]
[1762629127298,3.10211373,157.72,157.7,8.8587]
[1762629128299,0.04211373,157.72,157.71,3.15]
[1762629128895,0.04211373,157.72,157.7,8.8587]
[1762629129196,3.10211373,157.72,157.7,8.8587]
[1762629136802,0.04211373,157.72,157.71,3.15]
[1762629136996,3.06,157.77,157.73,3.15]
[1762629137203,4.94095739,157.76,157.73,3.15]
[1762629137496,4.94095739,157.75,157.74,8.8573]
[1762629138100,0.04142072,157.76,157.75,3.15]
[1762629138402,4.98315237,157.76,157.75,3.15]
[1762629139697,0.04142072,157.76,157.75,3.15]
[1762629158016,0.04142072,157.76,157.75,8.857]
[1762629176338,4.9765531,157.76,157.75,8.857]
[1762629176937,0.04142072,157.76,157.75,8.857]
[1762629178441,4.97950741,157.76,157.75,8.857]
[1762629179137,0.04142072,157.76,157.75,8.857]
[1762629180340,9.08655473,157.83,157.81,3.03]
[1762629180542,9.51708228,157.82,157.81,3.03]
[1762629181138,4.94148557,157.82,157.81,3.03]
[1762629181346,9.51729922,157.82,157.81,8.7348]
[1762629181546,4.94148557,157.82,157.81,8.7348]
[1762629182046,8.557e-05,157.82,157.81,8.7348]
[1762629182345,0.04459996,157.83,157.82,3.09]
[1762629183133,2.98,157.87,157.84,3.09]
[1762629183948,2.98,157.87,157.86,5.703]
[1762629184142,0.04280017,157.87,157.86,8.793]
[1762629187242,3.02280017,157.87,157.84,0.04587671]
[1762629187442,2.98,157.85,157.84,0.04587671]
[1762629193652,2.98,157.84,157.8,5.705]
[1762629193858,2.98,157.82,157.8,5.705]
[1762629195254,2.98,157.82,157.8,8.795]
[1762629199358,0.04202725,157.83,157.81,3.09]
[1762629199656,3.02202725,157.83,157.81,3.09]
[1762629204665,3.02202725,157.83,157.81,8.7948]
[1762629205465,3.02202725,157.83,157.81,5.7048]
[1762629205667,2.40870146,157.83,157.79,8.83866697]
[1762629205859,2.98,157.82,157.79,5.74866697]
[1762629206265,2.98,157.82,157.79,3.13336697]
[1762629207062,2.98,157.82,157.8,8.7951]
[1762629208467,2.40870146,157.83,157.81,3.09]
[1762629209365,5.38870146,157.83,157.81,3.09]
[1762629209869,3.02202725,157.83,157.81,8.7948]
[1762629211369,3.02202725,157.83,157.81,3.09]
[1762629211575,5.38870146,157.83,157.81,3.09]
[1762629214170,5.38870146,157.83,157.81,8.7948]
[1762629220576,3.02202725,157.83,157.81,8.7948]
[1762629221369,4.89897108,157.82,157.81,8.7948]
[1762629232276,9.49619567,157.82,157.81,8.7948]
[1762629245398,4.89897108,157.82,157.81,8.7948]
[1762629247498,0.04202725,157.83,157.81,3.09]
[1762629247997,0.04202725,157.83,157.82,8.8045]
[1762629248298,4.95747193,157.83,157.82,8.8045]
[1762629248798,3.04,157.82,157.8,5.57034412]
[1762629249106,7.95544468,157.81,157.8,5.57034412]
[1762629249905,7.95544468,157.81,157.8,8.67034412]
[1762629250098,4.91544468,157.81,157.8,8.67034412]
[1762629252698,4.91544468,157.81,157.8,5.57034412]
[1762629252699,7.95544468,157.81,157.8,5.57034412]
[1762629253199,7.95131792,157.81,157.8,5.57034412]
[1762629253401,7.95131792,157.81,157.8,8.67034412]
[1762629253704,7.95131792,157.81,157.8,5.57034412]
[1762629254401,12.53565347,157.81,157.8,5.57034412]
[1762629255803,12.53565347,157.81,157.8,8.67034412]
[1762629256294,7.95131792,157.81,157.8,8.67034412]
[1762629256698,3.04,157.8,157.79,0.04336697]
[1762629256897,12.53532957,157.8,157.79,0.04336697]
[1762629257299,12.53532957,157.8,157.79,5.74886697]
[1762629257499,3.04,157.79,157.74,3.1]
[1762629257699,7.95131792,157.78,157.77,5.7063]
[1762629258007,4.91131792,157.78,157.77,8.8063]
[1762629258909,1.792e-05,157.78,157.77,8.8063]
[1762629259206,0.04697796,157.79,157.78,3.1]
[1762629279630,0.04697796,157.79,157.78,8.8059]
[1762629298442,2.36575822,157.8,157.79,8.8856]
[1762629300239,0.04207498,157.81,157.8,5.7052]
[1762629300440,0.04207498,157.81,157.8,8.8852]
[1762629300740,2.36575822,157.84,157.81,3.18]
[1762629301128,2.36575822,157.84,157.83,8.8841]
[1762629301329,6.94627937,157.84,157.83,8.8841]
[1762629302046,0.03996858,157.85,157.84,3.04]
[1762629302233,2.4057268,157.85,157.84,3.04]
[1762629302943,6.98387943,157.85,157.84,3.04]
[1762629304244,2.4057268,157.85,157.84,3.04]
[1762629305344,5.4157268,157.85,157.84,3.04]
[1762629305745,3.01,157.84,157.82,0.04165064]
[1762629306051,9.95314613,157.83,157.82,0.04165064]
[1762629306445,9.95314613,157.83,157.82,5.74615064]
[1762629307344,2.4057268,157.85,157.84,8.7438]
[1762629310344,7.30125084,157.85,157.84,8.7438]
[1762629311353,10.31125084,157.85,157.84,5.7038]
[1762629316359,3.01,157.84,157.75,3.04]
[1762629316558,5.37575822,157.79,157.75,3.04]
[1762629316756,5.37575822,157.77,157.73,3.04]
[1762629317254,2.41303753,157.77,157.73,3.08772298]
[1762629317962,2.41303753,157.77,157.76,5.7067]
[1762629324868,2.41303753,157.77,157.76,8.7467]
[1762629325663,0.04727931,157.77,157.76,8.7467]
[1762629335572,3.08727931,157.77,157.76,5.7067]
[1762629335874,0.04727931,157.77,157.76,8.6667]
[1762629344676,3.16727931,157.77,157.74,8.867]
[1762629354983,8.03108369,157.76,157.74,8.867]
[1762629355180,3.12,157.76,157.74,8.867]
[1762629357484,4.91499191,157.75,157.74,8.867]
[1762629358585,4.91499191,157.75,157.74,3.16]
[1762629364491,7.96499191,157.75,157.74,3.16]
[1762629364691,3.05,157.74,157.71,3.02]
[1762629364995,3.05,157.72,157.71,3.02]
[1762629365591,7.97580773,157.72,157.71,3.02]
[1762629365982,4.92580773,157.72,157.71,3.02]
[1762629368397,3.09822673,157.73,157.71,3.02]
[1762629368791,3.09822673,157.73,157.7,3.06484037]
[1762629368991,3.05,157.71,157.7,0.04484037]
[1762629371096,4.92245711,157.71,157.66,3.02]
[1762629371393,3.05,157.71,157.66,3.02]
[1762629372092,3.09610753,157.7,157.67,3.06796458]
[1762629374597,3.09610753,157.7,157.67,0.04796458]
[1762629375794,3.05,157.68,157.67,0.04796458]
[1762629375992,3.05,157.67,157.63,3.02]
[1762629376191,3.05,157.65,157.63,3.02]
[1762629376393,3.05,157.67,157.63,3.02]
[1762629376589,3.69729063,157.68,157.63,3.02]
[1762629376590,7.96389777,157.66,157.63,3.02]
[1762629376794,3.05,157.66,157.63,3.02]
[1762629376995,3.09461138,157.66,157.63,3.06820067]
[1762629377499,3.09461138,157.66,157.63,0.04820067]
[1762629379102,3.05,157.65,157.63,0.04820067]
[1762629381199,3.05,157.64,157.63,0.04820067]
[1762629386811,3.09461138,157.66,157.63,3.06820067]
[1762629387403,3.05,157.65,157.63,3.06820067]
[1762629387810,3.05,157.65,157.63,0.04820067]
[1762629388610,3.05,157.65,157.63,3.06820067]
[1762629390215,3.09461138,157.66,157.63,3.06820067]
[1762629390611,0.04461138,157.66,157.64,3.02]
[1762629392020,0.04461138,157.66,157.64,8.7309]
[1762629392208,0.04461138,157.66,157.65,3.08]
[1762629412440,0.04461138,157.66,157.63,0.04820067]
[1762629412441,22.0,157.72,157.68,3.1]
[1762629412645,4.90632214,157.71,157.68,3.1]
[1762629412839,25.19,157.72,157.68,3.1]
[1762629413042,25.19,157.72,157.7,3.1]
[1762629413043,4.90599054,157.71,157.7,3.1]
[1762629416546,8.09599054,157.71,157.69,8.85263471]
[1762629416746,8.09945225,157.7,157.69,0.04343471]
[1762629419051,4.90945225,157.7,157.69,0.04343471]
[1762629419250,4.90945225,157.7,157.69,3.14343471]
[1762629420342,8.09945225,157.7,157.69,0.04343471]
[1762629422248,12.69930968,157.7,157.69,0.04343471]
[1762629422652,3.16,157.69,157.64,2.93]
[1762629422846,7.27945284,157.68,157.64,2.93]
[1762629423047,2.37000059,157.68,157.66,2.93]
[1762629424158,8.07216653,157.67,157.65,0.04783754]
[1762629424453,10.44216712,157.66,157.65,0.04783754]
[1762629424657,7.28216712,157.66,157.65,0.04783754]
[1762629424857,7.28216712,157.66,157.65,2.97783754]
[1762629425052,2.37000059,157.66,157.65,2.97783754]
[1762629426056,0.0420211,157.69,157.65,2.97783754]
[1762629426961,0.0420211,157.69,157.68,2.93]
[1762629428259,3.2020211,157.69,157.65,2.97783754]
[1762629428464,2.37000059,157.67,157.65,2.97783754]
[1762629430965,2.41202169,157.69,157.66,2.93]
[1762629431159,4.91547416,157.68,157.66,2.93]
[1762629431460,4.91717361,157.67,157.66,2.93]
[1762629432164,3.16,157.68,157.66,2.93]
[1762629433463,4.91766211,157.67,157.66,2.93]
[1762629433665,3.16,157.68,157.66,2.93]
[1762629434055,2.41202169,157.69,157.66,2.93]
[1762629434256,4.91839154,157.68,157.66,2.93]
[1762629434461,4.91839154,157.67,157.66,2.93]
[1762629434862,5.57202169,157.69,157.66,2.93]
[1762629435154,4.91913992,157.68,157.66,2.93]
[1762629435355,5.57202169,157.69,157.66,2.93]
[1762629435561,4.91976779,157.68,157.66,2.93]
[1762629435758,5.57202169,157.69,157.66,2.93]
[1762629435965,3.16,157.67,157.65,2.97783754]
[1762629436165,4.9197664,157.66,157.65,2.97783754]
[1762629436663,8.0797664,157.66,157.65,0.04783754]
[1762629438058,15.03197235,157.66,157.65,0.04783754]
[1762629440366,15.03207705,157.66,157.65,0.04783754]
[1762629441174,10.44976699,157.66,157.65,0.04783754]
[1762629441357,13.00036699,157.66,157.61,2.93]
[1762629441563,3.16,157.63,157.61,2.93]
[1762629441762,2.37000059,157.64,157.61,2.93]
[1762629442063,4.91671733,157.63,157.61,2.93]
[1762629442265,2.37000059,157.64,157.61,2.93]
[1762629442560,2.41730646,157.64,157.61,2.97133849]
[1762629442959,2.41730646,157.64,157.61,8.68333849]
[1762629443370,2.41730646,157.64,157.61,2.97133849]
[1762629443865,2.41730646,157.64,157.62,5.7117]
[1762629444261,5.57730646,157.64,157.61,2.97133849]
[1762629444761,5.57730646,157.64,157.62,2.93]
[1762629445067,0.04730587,157.64,157.62,2.93]
[1762629445270,0.04730587,157.64,157.62,8.6417]
[1762629447265,0.04730587,157.64,157.63,2.93]
[1762629456073,3.24730587,157.64,157.61,2.96133849]
[1762629456272,3.24730587,157.64,157.61,0.04133849]
[1762629456576,3.24730587,157.64,157.61,2.96133849]
[1762629456974,3.24730587,157.64,157.61,8.67333849]
[1762629457169,3.24730587,157.64,157.61,2.96133849]
[1762629457374,3.24730587,157.64,157.61,0.04133849]
[1762629458578,5.57000059,157.63,157.61,0.04133849]
[1762629461083,3.2,157.62,157.61,0.04133849]
[1762629461383,3.2,157.61,157.55,2.92]
[1762629461584,2.37000059,157.6,157.57,5.7134]
[1762629461772,2.37000059,157.6,157.58,2.92]
[1762629462286,5.57000059,157.6,157.57,0.04283037]
[1762629462583,3.2,157.59,157.57,0.04283037]
[1762629466082,0.04712649,157.61,157.57,3.00283037]
[1762629467976,0.04712649,157.61,157.59,5.7127]
[1762629468180,0.04712649,157.61,157.59,8.6727]
[1762629468586,3.18712649,157.61,157.59,8.6727]
[1762629471095,0.04712649,157.61,157.59,8.6727]
[1762629472384,0.04712649,157.61,157.6,2.96]
[1762629475393,0.04712649,157.61,157.59,8.6727]
[1762629475692,3.18712649,157.61,157.59,8.6727]
[1762629477284,0.04712649,157.61,157.6,2.96]
[1762629477491,0.04712649,157.61,157.59,8.6727]
[1762629478487,3.01712649,157.61,157.57,0.04283037]
[1762629478788,3.01712649,157.61,157.57,3.16283037]